bitfinex/quotes_SOLUSD_20240716
["timestamp","ask_amount","ask_price","bid_price","bid_amount"]
[1721112240579,1.2743,156.57,156.53,6.3884]
[1721112240773,1.2743,156.57,156.54,6.3881]
[1721112241080,1.2743,156.59,156.54,15.9703]
[1721112241289,1.2743,156.59,156.5,15.9735]
[1721112241681,6.3878,156.55,156.5,22.3631]
[1721112241875,6.3891,156.52,156.47,15.9774]
[1721112242212,1.2743,156.54,156.47,15.9774]
[1721112242411,21.2743,156.54,156.48,6.3901]
[1721112242578,6.3889,156.52,156.47,22.3683]
[1721112242772,1.2743,156.51,156.48,6.3905]
[1721112242969,1.2743,156.51,156.47,15.9774]
[1721112243199,1.2743,156.51,156.47,22.3683]
[1721112243496,1.2743,156.51,156.44,6.1099]
[1721112243497,6.3898,156.5,156.45,6.3917]
[1721112243699,1.2743,156.49,156.41,15.11625262]
[1721112244011,1.2743,156.52,156.41,15.11625262]
[1721112244300,1.2743,156.51,156.41,15.11625262]
[1721112244481,21.2743,156.51,156.41,15.11625262]
[1721112245293,21.2743,156.51,156.41,0.04015262]
[1721112245484,6.3906,156.48,156.41,0.04015262]
[1721112245678,1.2743,156.47,156.41,0.04015262]
[1721112245878,1.2743,156.47,156.44,6.392]
[1721112246487,1.2743,156.47,156.43,22.3737]
[1721112246687,1.2743,156.46,156.43,22.3737]
[1721112246884,37.6,156.52,156.45,6.3914]
[1721112246885,1.2743,156.48,156.45,6.3914]
[1721112247195,1.2743,156.5,156.43,15.9812]
[1721112247387,1.2743,156.5,156.46,15.9782]
[1721112247705,1.2743,156.52,156.48,6.3902]
[1721112247882,1.2743,156.51,156.48,6.3902]
[1721112248295,6.3886,156.53,156.47,6.3909]
[1721112248488,6.3886,156.53,156.46,15.9782]
[1721112248797,20.0,156.52,156.46,15.9782]
[1721112249304,1.2743,156.51,156.47,6.3909]
[1721112249474,1.2743,156.52,156.48,15.9754]
[1721112249670,1.2743,156.54,156.49,1.27673785]
[1721112249975,1.2743,156.54,156.48,15.9754]
[1721112250175,1.2743,156.54,156.48,22.3659]
[1721112250176,7.6627,156.54,156.48,22.3659]
[1721112250595,1.2743,156.54,156.41,0.04015262]
[1721112250796,6.3898,156.5,156.45,6.3917]
[1721112250994,38.8743,156.54,156.41,65.04015262]
[1721112250995,1.2743,156.49,156.41,0.04015262]
[1721112251191,6.3902,156.49,156.44,6.3922]
[1721112251505,7.6649,156.48,156.43,6.3924]
[1721112251706,6.3913,156.47,156.41,0.04015262]
[1721112252004,1.2743,156.48,156.44,15.9802]
[1721112252195,21.2743,156.49,156.44,15.9802]
[1721112252497,1.2743,156.49,156.46,6.3913]
[1721112252703,1.2743,156.48,156.44,15.9802]
[1721112252881,7.665,156.48,156.44,15.9802]
[1721112253494,1.2743,156.48,156.44,22.3724]
[1721112253692,1.2743,156.47,156.44,22.3724]
[1721112254006,1.2743,156.48,156.45,6.3916]
[1721112254508,1.2743,156.48,156.46,6.3913]
[1721112254690,21.2743,156.5,156.45,6.3917]
[1721112254887,27.6641,156.5,156.45,6.3917]
[1721112255095,1.2743,156.5,156.44,6.3921]
[1721112255280,1.2743,156.5,156.41,0.04015262]
[1721112255281,37.2488,156.5,156.41,16.02355262]
[1721112255488,15.7926,156.47,156.41,16.02355262]
[1721112255793,1.2743,156.46,156.41,16.02355262]
[1721112255988,1.2743,156.45,156.42,6.3929]
[1721112256201,1.2743,156.46,156.43,6.3925]
[1721112256380,1.2743,156.45,156.43,6.3925]
[1721112256583,1.2743,156.46,156.42,6.3928]
[1721112256784,1.2743,156.46,156.41,16.02355262]
[1721112256785,7.6664,156.45,156.41,0.04015262]
[1721112257096,1.2743,156.45,156.41,0.04015262]
[1721112257603,1.2743,156.45,156.41,6.43345262]
[1721112257787,1.2743,156.44,156.41,6.43355262]
[1721112258184,1.2743,156.46,156.41,0.04015262]
[1721112258503,21.2743,156.46,156.44,6.3919]
[1721112258704,1.2743,156.49,156.44,15.9796]
[1721112258910,21.4782,156.51,156.48,6.3905]
[1721112259099,15.1932,156.51,156.47,6.3906]
[1721112259402,16.4675,156.51,156.41,0.04015262]
[1721112260204,37.6,156.5,156.41,0.04015262]
[1721112260409,7.6646,156.49,156.42,6.3929]
[1721112260611,1.2743,156.48,156.41,0.04015262]
[1721112260818,1.2743,156.48,156.42,6.3929]
[1721112261027,1.2743,156.48,156.41,0.04015262]
[1721112261214,37.6,156.47,156.41,0.04015262]
[1721112261518,1.2743,156.46,156.41,0.04015262]
[1721112261719,1.2743,156.45,156.41,0.04015262]
[1721112261924,1.2743,156.45,156.41,6.43345262]
[1721112262120,1.2743,156.45,156.41,0.04015262]
[1721112262520,1.2743,156.47,156.44,6.392]
[1721112262721,1.2743,156.47,156.45,6.3915]
[1721112263224,1.2743,156.47,156.43,22.3731]
[1721112263395,1.2743,156.47,156.41,6.43335262]
[1721112263601,1.2743,156.47,156.41,0.04015262]
[1721112264217,1.2743,156.47,156.41,1.31862294]
[1721112264823,30.76281087,156.51,156.41,1.31862294]
[1721112264824,1.2743,156.5,156.41,1.31862294]
[1721112265029,1.2743,156.5,156.41,0.04015262]
[1721112265416,1.2743,156.5,156.45,6.3914]
[1721112265725,21.7998869,156.51,156.46,1.27814768]
[1721112265928,1.2743,156.5,156.45,6.3915]
[1721112266116,16.4675,156.51,156.46,51.3912]
[1721112266830,22.8569,156.51,156.46,45.0]
[1721112267129,6.3897,156.5,156.41,0.04015262]
[1721112267326,1.2743,156.49,156.41,0.04015262]
[1721112267521,1.2743,156.48,156.41,0.04015262]
[1721112267825,1.2743,156.48,156.42,6.3926]
[1721112268399,1.2743,156.47,156.42,6.3926]
[1721112268631,1.2743,156.5,156.42,6.3926]
[1721112268803,6.5954,156.49,156.41,0.04015262]
[1721112269132,6.3918,156.45,156.41,0.04015262]
[1721112269427,1.2743,156.44,156.41,0.04015262]
[1721112269804,6.3928,156.43,156.41,0.04015262]
[1721112270003,7.6673,156.42,156.41,0.04015262]
[1721112271124,1.2743,156.42,156.41,0.04015262]
[1721112271331,1.2743,156.43,156.41,0.04015262]
[1721112271509,1.2743,156.45,156.42,6.3928]
[1721112272009,1.2743,156.46,156.42,15.9824]
[1721112272329,15.4969,156.47,156.42,15.9824]
[1721112272330,1.2743,156.45,156.42,15.9824]
[1721112272539,1.2743,156.45,156.41,0.04015262]
[1721112273320,7.6661,156.45,156.41,0.04015262]
[1721112273525,6.3922,156.44,156.41,0.04015262]
[1721112273704,1.2743,156.43,156.41,0.04015262]
[1721112273906,6.3917,156.46,156.41,0.04015262]
[1721112273907,1.2743,156.45,156.41,0.04015262]
[1721112274327,6.3926,156.43,156.41,0.04015262]
[1721112274636,7.6673,156.42,156.41,0.04015262]
[1721112275535,6.393,156.42,156.41,0.04015262]
[1721112275740,7.6673,156.42,156.41,0.04015262]
[1721112276041,6.3946,156.38,156.37,0.8176641]
[1721112276249,7.6689,156.38,156.37,0.8176641]
[1721112276417,23.7374,156.38,156.37,0.8176641]
[1721112276950,17.3428,156.38,156.37,0.8176641]
[1721112277248,1.2743,156.38,156.37,0.8176641]
[1721112277427,21.2743,156.4,156.37,0.8176641]
[1721112277632,1.2743,156.39,156.37,0.8176641]
[1721112278240,7.6689,156.38,156.37,0.8176641]
[1721112278538,27.6689,156.38,156.37,0.8176641]
[1721112279631,72.6689,156.38,156.37,0.8176641]
[1721112282233,10.0,156.36,156.27,15.9978]
[1721112282426,82.2609,156.38,156.27,22.3966]
[1721112282427,6.3967,156.33,156.27,22.3966]
[1721112282631,1.2743,156.32,156.29,6.3982]
[1721112283130,1.2743,156.32,156.27,15.9978]
[1721112283131,1.2743,156.34,156.3,6.3978]
[1721112283325,1.2743,156.34,156.32,6.397]
[1721112283641,6.3951,156.37,156.32,6.3969]
[1721112283944,1.2743,156.36,156.33,6.3966]
[1721112284145,1.2743,156.35,156.33,6.3966]
[1721112284346,1.2743,156.37,156.33,6.3967]
[1721112284726,1.2743,156.41,156.34,6.3962]
[1721112285024,1.2743,156.41,156.33,6.3966]
[1721112285231,6.3951,156.37,156.32,15.9918]
[1721112285427,1.2743,156.36,156.33,6.3967]
[1721112285641,7.669,156.38,156.33,6.3967]
[1721112286027,1.2743,156.38,156.34,6.3962]
[1721112286229,1.2743,156.37,156.33,6.3966]
[1721112286440,15.9859,156.39,156.29,6.4105]
[1721112286651,6.3957,156.36,156.31,6.3974]
[1721112286850,1.2743,156.35,156.3,15.9947]
[1721112287154,6.6110766,156.39,156.28,6.3984]
[1721112287155,21.2743,156.38,156.28,6.3984]
[1721112287344,21.2743,156.38,156.27,16.3563]
[1721112287730,6.3958,156.36,156.27,16.3563]
[1721112287938,7.6703,156.35,156.29,6.398]
[1721112288137,7.6703,156.35,156.3,6.3979]
[1721112288340,1.2743,156.35,156.31,6.3974]
[1721112288735,7.6702,156.35,156.3,6.3979]
[1721112288948,1.2743,156.34,156.3,6.3979]
[1721112289358,7.6707,156.34,156.3,15.9948]
[1721112290951,1.2743,156.34,156.27,22.3969]
[1721112291139,6.3975,156.32,156.27,15.9979]
[1721112291335,1.2743,156.31,156.27,15.9979]
[1721112291835,7.672,156.31,156.27,15.9979]
[1721112292033,7.6723,156.3,156.25,6.3998]
[1721112292443,1.2743,156.3,156.21,7.0071641]
[1721112292642,1.2743,156.33,156.29,6.3979]
[1721112292849,1.2743,156.32,156.22,1.27985988]
[1721112293238,1.2743,156.32,156.21,7.0071641]
[1721112293556,7.6718,156.32,156.26,15.9987]
[1721112293973,1.2743,156.32,156.28,15.996]
[1721112294461,1.2743,156.37,156.28,15.996]
[1721112294641,1.2743,156.37,156.31,6.3974]
[1721112294842,10.41072983,156.37,156.31,6.3974]
[1721112295252,10.41072983,156.37,156.28,15.996]
[1721112295253,26.39942983,156.37,156.27,45.0]
[1721112295459,10.41072983,156.37,156.27,45.0]
[1721112295755,6.3956,156.36,156.27,45.0]
[1721112295937,1.2743,156.35,156.27,45.0]
[1721112296131,7.6706,156.35,156.3,15.9946]
[1721112296557,7.6702,156.35,156.3,15.9946]
[1721112296762,6.3964,156.34,156.3,15.9946]
[1721112297051,1.2743,156.33,156.3,15.9946]
[1721112297444,1.2743,156.33,156.3,22.3925]
[1721112298046,1.2743,156.34,156.3,22.3925]
[1721112298251,7.6707,156.34,156.3,15.9946]
[1721112298444,1.2743,156.35,156.31,6.3974]
[1721112298641,1.2743,156.35,156.3,15.9946]
[1721112298642,7.6702,156.35,156.3,15.9946]
[1721112299354,1.2743,156.35,156.3,22.3923]
[1721112299749,7.6703,156.35,156.3,22.3923]
[1721112300058,1.2743,156.35,156.3,22.3923]
[1721112300272,1.2743,156.36,156.31,1.27943012]
[1721112300569,9.13642983,156.37,156.33,15.9916]
[1721112300570,10.41072983,156.37,156.33,15.9916]
[1721112300860,10.41072983,156.37,156.34,6.3961]
[1721112301061,10.41072983,156.37,156.26,15.8987]
[1721112301232,10.41072983,156.37,156.27,15.9977]
[1721112301432,6.3976,156.31,156.26,6.3993]
[1721112301665,1.2743,156.3,156.21,16.5122641]
[1721112301848,1.2743,156.29,156.26,6.3995]
[1721112302044,1.2743,156.32,156.21,16.5122641]
[1721112302249,1.2743,156.32,156.27,6.3987]
[1721112302655,7.6715,156.32,156.27,6.3987]
[1721112302965,1.2743,156.32,156.26,6.3995]
[1721112303147,1.2743,156.32,156.27,6.3989]
[1721112303344,1.2743,156.32,156.24,16.0]
[1721112303666,1.2743,156.32,156.28,6.3987]
[1721112303963,1.2743,156.34,156.3,6.3979]
[1721112304265,6.60273774,156.35,156.29,1.27946209]
[1721112304266,7.87703774,156.35,156.29,1.27946209]
[1721112304440,14.27293774,156.35,156.29,7.67766209]
[1721112304639,14.27293774,156.35,156.32,6.3971]
[1721112304640,1.2743,156.35,156.32,6.3971]
[1721112304859,10.32470484,156.36,156.32,6.3971]
[1721112305270,1.2743,156.35,156.3,15.9946]
[1721112305663,7.6702,156.35,156.3,15.9946]
[1721112305873,7.6702,156.35,156.27,6.3989]
[1721112305874,6.3967,156.34,156.27,6.3989]
[1721112306073,1.2743,156.33,156.22,6.6401]
[1721112306280,1.2743,156.32,156.27,6.399]
[1721112306482,1.2743,156.35,156.22,6.6401]
[1721112306676,6.3965,156.34,156.23,20.0]
[1721112306989,6.3971,156.32,156.26,6.3992]
[1721112307168,7.6718,156.31,156.26,15.998]
[1721112307353,1.2743,156.31,156.27,6.3991]
[1721112307966,6.3979,156.3,156.25,6.3996]
[1721112308253,6.3979,156.3,156.22,22.6422]
[1721112308254,1.2743,156.29,156.24,6.4003]
[1721112309584,1.2743,156.29,156.25,6.3999]
[1721112309785,16.691,156.29,156.22,16.0021]
[1721112309957,7.6732,156.28,156.22,22.4031]
[1721112310379,6.3993,156.27,156.22,16.0021]
[1721112310691,1.2743,156.26,156.22,16.0021]
[1721112310862,1.2743,156.26,156.24,6.4002]
[1721112311187,1.2743,156.26,156.21,0.8176641]
[1721112311394,7.6739,156.26,156.21,23.2226641]
[1721112311574,1.2743,156.25,156.21,16.8211641]
[1721112311887,1.2743,156.25,156.21,23.2226641]
[1721112312180,7.6743,156.25,156.21,0.8176641]
[1721112312352,6.4005,156.24,156.21,0.8176641]
[1721112312558,1.2743,156.23,156.21,0.8176641]
[1721112312979,6.4012,156.22,156.21,0.8176641]
[1721112313165,1.2743,156.23,156.21,0.8176641]
[1721112313567,1.2743,156.24,156.21,0.8176641]
[1721112313790,1.2743,156.23,156.21,0.8176641]
[1721112314473,6.4012,156.22,156.21,0.8176641]
[1721112314797,22.764,156.22,156.21,0.8176641]
[1721112315164,22.764,156.22,156.12,16.0132]
[1721112315165,16.3628,156.22,156.12,16.0132]
[1721112315363,16.3628,156.22,156.11,6.4053]
[1721112315364,1.2743,156.21,156.11,6.4053]
[1721112315574,1.2743,156.2,156.09,6.4061]
[1721112315782,6.4036,156.17,156.06,21.5373]
[1721112315958,1.2743,156.2,156.06,21.5373]
[1721112316157,7.87473482,156.22,156.14,22.0498]
[1721112316365,6.60043482,156.22,156.21,16.004]
[1721112316597,10.27181334,156.23,156.14,22.0498]
[1721112316904,10.27181334,156.23,156.15,1.28037162]
[1721112317057,8.99751334,156.23,156.15,46.28037162]
[1721112317261,1.2743,156.24,156.2,6.402]
[1721112317495,1.2743,156.23,156.17,16.0072]
[1721112317783,1.2743,156.25,156.18,1.28031498]
[1721112317993,1.2743,156.25,156.2,16.0048]
[1721112318201,11.2743,156.25,156.09,6.1873]
[1721112318358,11.2743,156.25,156.14,6.4042]
[1721112318563,11.2743,156.25,156.15,6.4037]
[1721112318865,6.4036,156.17,156.12,16.0132]
[1721112319162,1.2743,156.2,156.12,16.0132]
[1721112319366,6.4036,156.16,156.12,16.0132]
[1721112319587,1.2743,156.2,156.12,16.0132]
[1721112319588,6.4032,156.18,156.12,22.4184]
[1721112319795,1.2743,156.17,156.13,6.4046]
[1721112319965,1.2743,156.18,156.12,16.0132]
[1721112320161,1.2743,156.19,156.14,6.4044]
[1721112320371,1.2743,156.2,156.15,7.68459673]
[1721112320579,1.2743,156.2,156.12,16.0132]
[1721112320770,1.2743,156.2,156.16,6.4036]
[1721112321091,7.6764,156.2,156.14,6.4044]
[1721112321270,6.4032,156.18,156.12,22.4181]
[1721112321602,6.0436,156.23,156.12,16.0132]
[1721112321603,7.6776,156.17,156.12,16.0132]
[1721112321779,1.2743,156.16,156.12,16.0132]
[1721112321962,7.6781,156.16,156.1,6.4057]
[1721112322163,1.2743,156.16,156.11,6.4053]
[1721112322368,1.2743,156.2,156.11,6.4053]
[1721112322598,1.2743,156.2,156.1,6.4057]
[1721112323091,6.4049,156.13,156.06,22.4366]
[1721112323268,7.6797,156.12,156.08,16.0166]
[1721112323586,1.2743,156.12,156.08,16.0166]
[1721112323770,1.2743,156.13,156.08,16.0166]
[1721112323974,6.4055,156.12,156.08,16.0166]
[1721112324291,6.1184,156.16,156.05,0.8176641]
[1721112324292,7.6801,156.11,156.05,0.8176641]
[1721112324589,1.2743,156.1,156.05,0.8176641]
[1721112324767,1.2743,156.15,156.05,0.8176641]
[1721112324966,6.4062,156.1,156.05,0.8176641]
[1721112325195,1.2743,156.09,156.05,0.8176641]
[1721112325398,16.0143,156.12,156.05,0.8176641]
[1721112325700,1.2743,156.11,156.05,0.8176641]
[1721112325901,17.9003,156.11,156.05,0.8176641]
[1721112326104,6.4073,156.08,156.05,0.8176641]
[1721112326397,7.6817,156.07,156.05,0.8176641]
[1721112326600,1.2743,156.07,156.05,0.8176641]
[1721112326968,7.6818,156.07,156.05,0.8176641]
[1721112327169,6.4077,156.06,156.05,0.8176641]
[1721112328789,7.682,156.06,156.05,0.8176641]
[1721112329291,7.682,156.06,155.94,0.04027364]
[1721112329292,6.4103,156.0,155.94,0.04027364]
[1721112329494,6.4103,156.0,155.95,6.4121]
[1721112329495,1.2743,155.99,155.95,6.4121]
[1721112329810,7.6856,155.98,155.94,0.04027364]
[1721112329979,1.2743,155.98,155.94,1.32278069]
[1721112330297,6.4118,155.97,155.9,6.414]
[1721112330472,1.2743,155.96,155.91,6.4137]
[1721112330670,1.2743,155.96,155.89,16.8540641]
[1721112330671,6.4129,155.94,155.89,16.8540641]
[1721112330870,7.6876,155.93,155.89,0.8176641]
[1721112331170,1.2743,155.92,155.89,0.8176641]
[1721112331374,6.4136,155.92,155.89,0.8176641]
[1721112331585,7.6882,155.91,155.89,0.8176641]
[1721112331799,1.2743,155.9,155.89,0.8176641]
[1721112331988,1.2743,155.96,155.89,0.8176641]
[1721112332293,7.6866,155.95,155.89,7.2319641]
[1721112332676,1.2743,155.95,155.89,0.8176641]
[1721112333002,1.2743,155.94,155.9,6.4143]
[1721112333177,1.2743,155.95,155.89,0.8176641]
[1721112333597,6.4131,155.94,155.89,0.8176641]
[1721112333806,7.6874,155.93,155.89,0.8176641]
[1721112333976,20.0,155.98,155.89,0.8176641]
[1721112333977,6.4141,155.91,155.89,0.8176641]
[1721112334178,1.2743,155.92,155.89,0.8176641]
[1721112334411,6.4135,155.93,155.89,0.8176641]
[1721112334708,1.2743,155.95,155.9,6.4143]
[1721112335005,6.4114,155.97,155.92,6.4132]
[1721112335194,1.2743,155.96,155.92,6.4132]
[1721112335372,1.2743,155.96,155.91,45.0]
[1721112335373,1.2743,155.98,155.91,45.0]
[1721112335576,6.4119,155.96,155.91,6.4138]
[1721112335795,1.2743,155.98,155.89,16.8543641]
[1721112336005,1.2743,155.98,155.94,6.4126]
[1721112336200,1.2743,155.98,155.92,16.0336]
[1721112336383,1.2743,155.98,155.9,45.0]
[1721112336384,6.4123,155.96,155.9,51.4143]
[1721112336572,7.6868,155.95,155.9,45.0]
[1721112336777,1.2743,155.94,155.89,45.8176641]
[1721112337011,7.6866,155.95,155.89,52.2320641]
[1721112337216,1.2743,155.94,155.89,45.8176641]
[1721112337379,6.59152877,155.96,155.89,45.8176641]
[1721112337583,1.2743,155.98,155.89,45.8176641]
[1721112337584,7.6841,156.01,155.95,6.4119]
[1721112337780,13.00129028,156.0,155.94,22.4436]
[1721112338081,1.2743,155.99,155.95,7.69453758]
[1721112338280,6.59109028,156.0,155.94,16.0309]
[1721112338508,6.59109028,156.0,155.97,16.0285]
[1721112338708,1.2743,156.04,155.98,1.28203063]
[1721112339040,7.683,156.04,155.98,51.4109]
[1721112339227,6.4093,156.03,155.97,22.4396]
[1721112339502,6.4093,156.03,155.97,16.0285]
[1721112339713,6.4097,156.02,155.97,16.0285]
[1721112339882,6.4097,156.02,155.91,6.2404]
[1721112339883,10.0,156.06,155.93,16.0318]
[1721112340086,6.4104,156.0,155.93,16.0318]
[1721112340306,6.4104,156.0,155.95,6.4122]
[1721112340501,6.4106,155.99,155.93,16.0318]
[1721112340708,6.4103,156.0,155.95,6.4122]
[1721112341029,6.4102,156.01,155.95,6.4122]
[1721112341193,6.4094,156.03,155.96,16.0295]
[1721112341394,6.4105,156.0,155.92,16.0331]
[1721112341618,6.4107,155.99,155.94,6.4123]
[1721112341820,16.0239,156.02,155.91,6.2404]
[1721112341990,6.4113,155.98,155.89,0.8176641]
[1721112342195,6.4113,155.98,155.91,22.4476]
[1721112342412,6.4124,155.95,155.89,0.8176641]
[1721112342820,6.2668,156.0,155.9,6.4143]
[1721112343002,6.2668,156.0,155.91,6.4139]
[1721112343334,6.4131,155.93,155.89,0.8176641]
[1721112343622,6.4128,155.94,155.89,0.8176641]
[1721112344219,6.4131,155.93,155.89,0.8176641]
[1721112344527,31.2928,155.99,155.89,0.8176641]
[1721112344828,10.0,155.98,155.89,7.2322641]
[1721112345026,10.0,155.98,155.89,0.8176641]
[1721112345230,16.0299,155.96,155.89,0.8176641]
[1721112345529,6.413,155.94,155.89,0.8176641]
[1721112345692,47.3202,155.99,155.89,0.8176641]
[1721112345895,6.4129,155.94,155.89,0.8176641]
[1721112346124,6.4129,155.94,155.89,7.2323641]
[1721112346297,47.3202,155.99,155.89,0.8176641]
[1721112346298,6.4131,155.93,155.89,0.8176641]
[1721112346497,6.4143,155.9,155.89,0.8176641]
[1721112346717,6.4139,155.92,155.89,0.8176641]
[1721112346912,25.2655,155.99,155.89,0.8176641]
[1721112346913,6.413,155.94,155.89,0.8176641]
[1721112347116,15.2655,155.99,155.9,1.2828424]
[1721112347334,15.2655,155.99,155.9,16.0349]
[1721112347499,6.2668,156.0,155.93,6.4131]
[1721112347698,6.4112,155.98,155.93,6.4131]
[1721112347997,21.8165,156.04,155.94,6.4127]
[1721112348195,6.4119,155.96,155.91,6.4139]
[1721112348434,6.4113,155.98,155.91,6.4135]
[1721112348722,16.0279,155.98,155.89,0.8176641]
[1721112348928,6.4127,155.94,155.89,0.8176641]
[1721112349098,6.4141,155.91,155.89,0.8176641]
[1721112349299,68.5379,155.98,155.89,0.8176641]
[1721112349529,16.0309,155.95,155.89,0.8176641]
[1721112349697,6.4143,155.9,155.89,0.8176641]
[1721112350353,22.0472,155.95,155.89,0.8176641]
[1721112350718,6.4143,155.9,155.89,0.8176641]
[1721112350917,6.414,155.91,155.89,0.8176641]
[1721112351139,21.4251,155.95,155.89,0.8176641]
[1721112351329,6.4139,155.92,155.89,0.8176641]
[1721112351524,21.4251,155.95,155.89,0.8176641]
[1721112351525,6.4143,155.9,155.89,0.8176641]
[1721112351732,21.4251,155.95,155.89,0.8176641]
[1721112351936,6.4127,155.94,155.89,7.2322641]
[1721112352158,6.4122,155.96,155.9,6.4143]
[1721112352321,21.2817,155.99,155.89,0.8176641]
[1721112352651,6.4125,155.95,155.89,0.8176641]
[1721112352820,6.4125,155.95,155.9,6.4142]
[1721112353025,6.4119,155.96,155.9,6.4142]
[1721112353448,6.4123,155.95,155.9,6.4142]
[1721112353832,6.4123,155.95,155.89,0.8176641]
[1721112354047,6.4128,155.94,155.89,0.8176641]
[1721112354231,6.4131,155.93,155.89,0.8176641]
[1721112354444,6.4107,155.99,155.93,6.4128]
[1721112354639,6.4115,155.97,155.91,16.0347]
[1721112354853,6.411,155.99,155.92,6.4135]
[1721112355233,6.4112,155.98,155.92,6.4135]
[1721112355641,6.4104,156.0,155.94,6.4127]
[1721112356041,6.4107,155.99,155.91,22.4992]
[1721112356336,6.4111,155.98,155.92,45.0]
[1721112356640,6.4106,155.99,155.93,6.413]
[1721112357032,6.411,155.98,155.92,51.4134]
[1721112357235,6.4221,156.03,155.89,0.8176641]
[1721112357236,10.0,156.01,155.89,0.8176641]
[1721112357431,32.0548,155.99,155.89,0.8176641]
[1721112357649,6.4123,155.95,155.9,1.28266443]
[1721112357838,6.4123,155.95,155.89,0.8176641]
[1721112357839,6.4124,155.95,155.89,0.8176641]
[1721112358152,16.0263,156.0,155.89,0.8176641]
[1721112358363,6.4114,155.98,155.91,6.4138]
[1721112358548,16.0263,156.0,155.92,1.28252824]
[1721112358549,6.4102,156.0,155.92,1.28252824]
[1721112358741,6.4221,156.03,155.95,6.4122]
[1721112358940,16.0254,156.01,155.9,6.4139]
[1721112359155,6.4115,155.97,155.9,0.56734151]
[1721112359359,6.4119,155.96,155.89,16.8542641]
[1721112359659,6.4109,155.99,155.92,22.4468]
[1721112359828,6.4221,156.03,155.92,22.4468]
[1721112360032,6.4115,155.97,155.92,16.0335]
[1721112360752,26.0236,156.02,155.89,0.8176641]
[1721112360937,6.4113,155.98,155.92,6.4134]
[1721112361339,6.4221,156.03,155.89,0.8176641]
[1721112361572,15.30964908,156.08,155.94,15.1489]
[1721112361747,6.4102,156.01,155.95,12.675]
[1721112362061,6.409,156.04,155.97,6.4114]
[1721112362364,6.4099,156.01,155.96,45.0]
[1721112362533,16.0203,156.06,155.95,28.7055]
[1721112362737,16.0203,156.06,155.9,42.51]
[1721112362738,6.412,155.96,155.91,16.0339]
[1721112362956,6.412,155.96,155.9,6.414]
[1721112362957,6.4123,155.95,155.9,6.414]
[1721112363148,6.4119,155.96,155.89,7.1347641]
[1721112363346,6.4115,155.97,155.89,7.1347641]
[1721112363667,6.4111,155.98,155.92,6.4134]
[1721112363848,15.0634,156.03,155.93,16.0327]
[1721112364030,6.4103,156.0,155.94,6.4126]
[1721112364840,10.0,156.06,155.93,16.0327]
[1721112365033,58.3056,156.07,155.97,6.4111]
[1721112365374,15.7956,156.07,155.98,7.69286126]
[1721112365544,15.7956,156.07,155.97,6.4114]
[1721112366368,6.4094,156.02,155.96,23.0349]
[1721112366870,16.0207,156.05,155.95,16.0298]
[1721112367075,6.4106,156.0,155.95,16.0298]
[1721112367365,6.4107,155.99,155.93,6.413]
[1721112367570,6.411,155.98,155.92,38.498]
[1721112367773,16.0239,156.02,155.92,32.0849]
[1721112368147,16.0239,156.02,155.92,16.0511]
[1721112368452,42.51,156.04,155.92,32.0846]
[1721112368654,36.0206,156.05,155.92,16.0511]
[1721112369180,6.4098,156.01,155.95,6.4122]
[1721112369672,6.4098,156.01,155.93,16.0319]
[1721112369673,25.7956,156.07,155.96,16.0296]
[1721112370464,15.7956,156.07,155.96,16.0296]
[1721112370673,6.4082,156.05,155.99,6.4103]
[1721112370968,6.4082,156.05,155.97,7.67168825]
[1721112370969,15.36804908,156.08,156.02,6.4094]
[1721112371472,16.0235,156.11,156.03,1.28168478]
[1721112371670,16.0235,156.11,156.02,45.0]
[1721112371882,16.0235,156.11,156.0,60.34]
[1721112372184,6.4553,156.12,156.02,6.409]